fUSD/lending_fUSD_20240708
["ID","MTS","AMOUNT","RATE_DAILY","PERIOD"]
[331540140,1720469440146,-500.0,0.0002004,2]
[331540142,1720469440156,-500.0,0.0002004,2]
[331540144,1720469440167,-500.0,0.0002004,2]
[331540146,1720469440177,-500.0,0.0002004,2]
[331540148,1720469440188,-500.0,0.0002004,2]
[331540150,1720469440198,-500.0,0.0002004,2]
[331540152,1720469440209,-500.0,0.0002004,2]
[331540154,1720469440219,-500.0,0.0002004,2]
[331540156,1720469440229,-500.0,0.0002004,2]
[331540158,1720469440239,-500.0,0.0002004,2]
[331540160,1720469440249,-500.0,0.0002004,2]
[331540161,1720469440260,-500.0,0.0002004,2]
[331540162,1720469440270,-500.0,0.0002004,2]
[331540163,1720469440280,-500.0,0.0002004,2]
[331540164,1720469440290,-500.0,0.0002004,2]
[331540165,1720469440299,-500.0,0.0002004,2]
[331540166,1720469440309,-500.0,0.0002004,2]
[331540167,1720469440318,-500.0,0.0002004,2]
[331540168,1720469440328,-500.0,0.0002004,2]
[331540169,1720469440337,-500.0,0.0002004,2]
[331540170,1720469440347,-500.0,0.0002004,2]
[331540171,1720469440357,-500.0,0.0002004,2]
[331540172,1720469440367,-500.0,0.0002004,2]
[331540173,1720469440377,-500.0,0.0002004,2]
[331540174,1720469440387,-500.0,0.0002004,2]
[331540175,1720469440814,-500.0,0.0002004,2]
[331540176,1720469440824,-500.0,0.0002004,2]
[331540177,1720469440834,-500.0,0.0002004,2]
[331540178,1720469440843,-500.0,0.0002004,2]
[331540179,1720469440853,-500.0,0.0002004,2]
[331540180,1720469440862,-500.0,0.0002004,2]
[331540181,1720469440872,-500.0,0.0002004,2]
[331540182,1720469440882,-500.0,0.0002004,2]
[331540183,1720469440891,-500.0,0.0002004,2]
[331540184,1720469440901,-500.0,0.0002004,2]
[331540185,1720469440910,-500.0,0.0002004,2]
[331540186,1720469440920,-500.0,0.0002004,2]
[331540187,1720469440930,-500.0,0.0002004,2]
[331540188,1720469440940,-500.0,0.0002004,2]
[331540189,1720469440949,-500.0,0.0002004,2]
[331540190,1720469440959,-500.0,0.0002004,2]
[331540191,1720469440969,-500.0,0.0002004,2]
[331540192,1720469440980,-500.0,0.0002004,2]
[331540193,1720469440989,-500.0,0.0002004,2]
[331540194,1720469440999,-500.0,0.0002004,2]
[331540195,1720469441008,-500.0,0.0002004,2]
[331540196,1720469441018,-500.0,0.0002004,2]
[331540197,1720469441027,-500.0,0.0002004,2]
[331540198,1720469441037,-500.0,0.0002004,2]
[331540199,1720469441047,-500.0,0.0002004,2]
[331540200,1720469441057,-717.16761484,0.00020102,2]
[331540201,1720469441067,-2020.40384023,0.000202,2]
[331540202,1720469441077,-342.18,0.00020389,2]
[331540203,1720469441086,-10000.0,0.00020416,2]
[331540204,1720469441096,-172.15,0.00020548,2]
[331540205,1720469441106,-38263.0,0.00020754,2]
[331540206,1720469441116,-5180.0,0.00020754,2]
[331540207,1720469441126,-291.0,0.00020754,2]
[331540208,1720469441136,-1137.505,0.00020754,2]
[331540209,1720469441145,-5804.0,0.00020754,2]
[331540210,1720469441155,-1198.0,0.00020754,2]
[331540211,1720469441165,-151.0,0.00020754,2]
[331540212,1720469441175,-151.0,0.00020754,2]
[331540213,1720469441185,-198.096338,0.00020754,2]
[331540214,1720469441194,-198.096338,0.00020754,2]
[331540215,1720469441204,-151.0,0.00020754,2]
[331540216,1720469441213,-938.43613,0.00020754,2]
[331540217,1720469441223,-151.0,0.00020754,2]
[331540218,1720469441232,-151.0,0.00020754,2]
[331540219,1720469441243,-938.43613,0.00020754,2]
[331540220,1720469441254,-151.0,0.00020754,2]
[331540221,1720469441264,-219.4,0.00020854,2]
[331540222,1720469441274,-414.69395408,0.000209,2]
[331540223,1720469441296,-219669.57242515,0.00021,2]
[331540224,1720469441318,-212.20203567,0.00021,2]
[331540225,1720469441355,-13.22854464,0.00021,2]
[331540226,1720469441382,-336.48081538,0.00021,2]
[331540227,1720469441411,-582.23596,0.00021,2]
[331540228,1720469441441,-1081.28322462,0.00021,2]
[331540229,1720469441457,-2000.0,0.00021,2]
[331540230,1720469441468,-465.66974285,0.00021,2]
[331540231,1720469441478,-1800.0,0.00021,6]
[331540232,1720469441488,-2158.38493257,0.00021,5]
[331540233,1720469441500,-850.40212826,0.00021,5]
[331540234,1720469441622,155.0,0.00011199,2]
[331540235,1720469441790,-263.58284568,0.00012302,2]
[331540236,1720469441800,-878.73925346,0.00012302,2]
[331540237,1720469441810,-297.82193595,0.00013128,2]
[331540238,1720469441819,-50.29247378,0.00013574,2]
[331540239,1720469441831,-354.23051344,0.00013574,2]
[331540240,1720469441842,-115.91904207,0.00013574,2]
[331540241,1720469441851,-184.08196193,0.00013574,2]
[331540242,1720469441863,-1664.7,0.00013574,2]
[331540243,1720469441878,-35035.55932875,0.00013574,2]
[331540244,1720469441888,-171.37886986,0.00014393,2]
[331540245,1720469441897,-227.24934482,0.00017807,2]
[331540246,1720469441907,-62377.55969602,0.00021,5]
[331540247,1720469441916,-151.0,0.00021,2]
[331540248,1720469441925,-191.74,0.00021,2]
[331540249,1720469441935,-151.0,0.00021,2]
[331540250,1720469441945,-151.0,0.00021,2]
[331540251,1720469441954,-151.0,0.00021,2]
[331540252,1720469441965,-151.0,0.00021,2]
[331540253,1720469441975,-151.0,0.00021,2]
[331540254,1720469441984,-151.0,0.00021,2]
[331540255,1720469441994,-169.389,0.00021,2]
[331540256,1720469442004,-151.0,0.00021,2]
[331540257,1720469442019,-151.0,0.00021,2]
[331540258,1720469442028,-151.0,0.00021,2]
[331540259,1720469442038,-151.0,0.00021,2]
[331540260,1720469442048,-156.025608,0.00021,2]
[331540261,1720469442057,-151.0,0.00021,2]
[331540262,1720469442067,-151.0,0.00021,2]
[331540263,1720469442076,-224.891355,0.00021,2]
[331540264,1720469442086,-343.068699,0.00021,2]
[331540265,1720469442095,-343.068699,0.00021,2]
[331540266,1720469442104,-151.0,0.00021,2]
[331540267,1720469442114,-243.498413,0.00021,2]
[331540268,1720469442123,-243.498413,0.00021,2]
[331540269,1720469442132,-151.0,0.00021,2]
[331540270,1720469442142,-151.0,0.00021,2]
[331540271,1720469442152,-151.0,0.00021,2]
[331540272,1720469442161,-151.0,0.00021,2]
[331540273,1720469442171,-557.6601,0.00021,2]
[331540274,1720469442180,-203.708153,0.00021,2]
[331540275,1720469442189,-297.644525,0.00021,2]
[331540276,1720469442198,-297.644525,0.00021,2]
[331540277,1720469442207,-151.0,0.00021,2]
[331540278,1720469442217,-524.979918,0.00021,2]
[331540279,1720469442226,-193.545091,0.00021,2]
[331540280,1720469442235,-151.0,0.00021,2]
[331540281,1720469442245,-193.545091,0.00021,2]
[331540282,1720469442255,-524.979918,0.00021,2]
[331540283,1720469442268,-194.788856,0.00021,2]
[331540284,1720469442278,-151.0,0.00021,2]
[331540285,1720469442287,-313.546916,0.00021,2]
[331540286,1720469442296,-194.788856,0.00021,2]
[331540287,1720469442306,-313.546916,0.00021,2]
[331540288,1720469442316,-811.4264,0.00021,2]
[331540289,1720469442325,-151.0,0.00021,2]
[331540290,1720469442335,-151.0,0.00021,2]
[331540291,1720469442344,-151.0,0.00021,2]
[331540292,1720469442354,-198.096338,0.00021,2]
[331540293,1720469442363,-151.0,0.00021,2]
[331540294,1720469442373,-198.096338,0.00021,2]
[331540295,1720469442383,-430.6404,0.00021,2]
[331540296,1720469442392,-151.0,0.00021,2]
[331540297,1720469442402,-938.43613,0.00021,2]
[331540298,1720469442411,-151.0,0.00021,2]
[331540299,1720469442420,-938.43613,0.00021,2]
[331540300,1720469442430,-151.0,0.00021,2]
[331540301,1720469442439,-1000.0,0.00021021,2]
[331540302,1720469442450,-151.0,0.0002104,2]
[331540303,1720469442459,-225.874483,0.0002104,2]
[331540304,1720469442469,-151.0,0.0002104,2]
[331540305,1720469442478,-151.0,0.0002104,2]
[331540306,1720469442488,-151.0,0.0002104,2]
[331540307,1720469442497,-151.0,0.0002104,2]
[331540308,1720469442507,-283.250947,0.0002104,2]
[331540309,1720469442521,-151.0,0.0002104,2]
[331540311,1720469442533,-151.0,0.0002104,2]
[331540312,1720469442542,-151.0,0.0002104,2]
[331540313,1720469442551,-151.0,0.0002104,2]
[331540314,1720469442564,-151.0,0.0002104,2]
[331540315,1720469442574,-343.068699,0.0002104,2]
[331540317,1720469442584,-343.068699,0.0002104,2]
[331540319,1720469442593,-151.0,0.0002104,2]
[331540320,1720469442602,-243.498413,0.0002104,2]
[331540321,1720469442614,-243.498413,0.0002104,2]
[331540322,1720469442623,-151.0,0.0002104,2]
[331540323,1720469442632,-151.0,0.0002104,2]
[331540324,1720469442641,-151.0,0.0002104,2]
[331540325,1720469442650,-151.0,0.0002104,2]
[331540326,1720469442660,-297.644525,0.0002104,2]
[331540327,1720469442669,-297.644525,0.0002104,2]
[331540328,1720469442678,-151.0,0.0002104,2]
[331540329,1720469442688,-524.979918,0.0002104,2]
[331540330,1720469442697,-193.545091,0.0002104,2]
[331540331,1720469442706,-151.0,0.0002104,2]
[331540332,1720469442715,-193.545091,0.0002104,2]
[331540333,1720469442724,-524.979918,0.0002104,2]
[331540334,1720469442734,-194.788856,0.0002104,2]
[331540335,1720469442743,-151.0,0.0002104,2]
[331540336,1720469442752,-313.546916,0.0002104,2]
[331540337,1720469442764,-194.788856,0.0002104,2]
[331540338,1720469442773,-313.546916,0.0002104,2]
[331540339,1720469442782,-151.0,0.0002104,2]
[331540340,1720469442792,-151.0,0.0002104,2]
[331540341,1720469442801,-151.0,0.0002104,2]
[331540342,1720469442810,-198.096338,0.0002104,2]
[331540343,1720469442820,-151.0,0.0002104,2]
[331540344,1720469442829,-198.096338,0.0002104,2]
[331540345,1720469442838,-151.0,0.0002104,2]
[331540346,1720469442847,-938.43613,0.0002104,2]
[331540347,1720469442857,-938.43613,0.0002104,2]
[331540348,1720469442866,-151.0,0.0002104,2]
[331540349,1720469442875,-135023.32352195,0.0002104,2]
[331540350,1720469442884,-1630.59899186,0.00021043,2]
[331540351,1720469442894,-50000.0,0.00021088,2]
[331540352,1720469442904,-2450.57587,0.0002136,2]
[331540353,1720469442914,-180.0,0.00021397,2]
[331540354,1720469442923,-151.0,0.00021564,2]
[331540355,1720469442932,-213.0,0.00021564,2]
[331540356,1720469442942,-162.0,0.00021564,2]
[331540357,1720469442951,-260.569,0.00021564,2]
[331540358,1720469442961,-163.478,0.00021564,2]
[331540359,1720469442971,-190.924,0.00021564,2]
[331540360,1720469442980,-150.0,0.00021564,2]
[331540361,1720469442989,-161.296,0.00021564,2]
[331540362,1720469442999,-151.058,0.00021564,2]
[331540363,1720469443010,-197.271,0.00021564,2]
[331540364,1720469443020,-170.948,0.00021564,2]
[331540365,1720469443030,-246.541,0.00021564,2]
[331540366,1720469443039,-150.173,0.00021564,2]
[331540367,1720469443049,-206.254,0.00021564,2]
[331540368,1720469443058,-202.821,0.00021564,2]
[331540369,1720469443068,-250.0,0.00021564,2]
[331540370,1720469443077,-169.252,0.00021564,2]
[331540371,1720469443087,-1830.0,0.00021564,2]
[331540372,1720469443096,-1797.492,0.00021564,2]
[331540373,1720469443106,-361.0,0.00021564,2]
[331540374,1720469443116,-1298.0,0.00021564,2]
[331540375,1720469443125,-813.0,0.00021564,2]
[331540376,1720469443135,-449.0,0.00021564,2]
[331540377,1720469443145,-166.0,0.00021564,2]
[331540378,1720469443154,-619.0,0.00021564,2]
[331540379,1720469443164,-444.0,0.00021564,2]
[331540380,1720469443174,-153.554,0.00021564,2]
[331540381,1720469443183,-1304.0,0.00021564,2]
[331540382,1720469443193,-2377.0,0.00021564,2]
[331540383,1720469443203,-549.0,0.00021564,2]
[331540384,1720469443212,-1989.0,0.00021564,2]
[331540389,1720469443395,-3276.0,0.00021564,2]
[331540390,1720469443406,-283.0,0.00021564,2]
[331540391,1720469443415,-353.3,0.00021624,2]
[331540392,1720469443425,-3519.0,0.00021626,2]
[331540393,1720469443434,-696.0,0.00021644,2]
[331540394,1720469443443,-234.56,0.00021644,2]
[331540395,1720469443452,-152.93,0.00021644,2]
[331540396,1720469443462,-2172.65843249,0.0002167,2]
[331540397,1720469443470,-227.178278,0.00021748,2]
[331540398,1720469443479,-151.0,0.00021748,2]
[331540399,1720469443488,-151.0,0.00021748,2]
[331540400,1720469443498,-1321.49,0.00021918,2]
[331540401,1720469443507,-151.0,0.00021918,2]
[331540402,1720469443518,-151.0,0.00021918,2]
[331540403,1720469443527,-151.0,0.00021918,2]
[331540404,1720469443540,-151.0,0.00021918,2]
[331540405,1720469443549,-150.0,0.00021918,2]
[331540406,1720469443559,-288.613245,0.00021918,2]
[331540407,1720469443568,-288.613245,0.00021918,2]
[331540408,1720469443577,-288.613245,0.00021918,2]
[331540409,1720469443588,-288.613245,0.00021918,2]
[331540410,1720469443597,-288.613245,0.00021918,2]
[331540411,1720469443606,-288.613245,0.00021918,2]
[331540412,1720469443616,-337.778049,0.00021918,2]
[331540413,1720469443626,-337.778049,0.00021918,2]
[331540414,1720469443636,-337.778049,0.00021918,2]
[331540415,1720469443645,-337.778049,0.00021918,2]
[331540416,1720469443654,-337.778049,0.00021918,2]
[331540417,1720469443663,-337.778049,0.00021918,2]
[331540418,1720469443672,-735.926346,0.00021918,2]
[331540419,1720469443682,-735.926346,0.00021918,2]
[331540420,1720469443691,-735.926346,0.00021918,2]
[331540421,1720469443701,-735.926346,0.00021918,2]
[331540422,1720469443711,-735.926346,0.00021918,2]
[331540423,1720469443720,-735.926346,0.00021918,2]
[331540424,1720469443730,-150.0,0.00021918,2]
[331540425,1720469443739,-150.0,0.00021918,2]
[331540426,1720469443748,-150.0,0.00021918,2]
[331540427,1720469443759,-150.0,0.00021918,2]
[331540428,1720469443769,-150.0,0.00021918,2]
[331540429,1720469443778,-150.0,0.00021918,2]
[331540430,1720469443787,-150.0,0.00021918,2]
[331540431,1720469443795,-150.0,0.00021918,2]
[331540432,1720469443804,-150.0,0.00021918,2]
[331540433,1720469443814,-150.0,0.00021918,2]
[331540434,1720469443823,-150.0,0.00021918,2]
[331540435,1720469443833,-150.0,0.00021918,2]
[331540436,1720469443842,-150.0,0.00021918,2]
[331540437,1720469443851,-150.0,0.00021918,2]
[331540438,1720469443861,-150.0,0.00021918,2]
[331540439,1720469443871,-150.0,0.00021918,2]
[331540440,1720469443881,-150.0,0.00021918,2]
[331540441,1720469443890,-150.0,0.00021918,2]
[331540442,1720469443900,-150.0,0.00021918,2]
[331540443,1720469443909,-150.0,0.00021918,2]
[331540444,1720469443919,-150.0,0.00021918,2]
[331540445,1720469443930,-150.0,0.00021918,2]
[331540446,1720469443939,-151.0,0.00021918,7]
[331540447,1720469443949,-151.0,0.00021918,7]
[331540448,1720469443959,-343.263747,0.00021918,7]
[331540449,1720469443969,-151.0,0.00021918,7]
[331540450,1720469443979,-343.068699,0.00021918,7]
[331540451,1720469443989,-343.068699,0.00021918,7]
[331540452,1720469443998,-156.612129,0.00021918,7]
[331540453,1720469444008,-243.498413,0.00021918,7]
[331540454,1720469444018,-243.498413,0.00021918,7]
[331540455,1720469444028,-151.0,0.00021918,7]
[331540456,1720469444038,-151.0,0.00021918,7]
[331540457,1720469444047,-151.0,0.00021918,7]
[331540458,1720469444057,-297.644525,0.00021918,7]
[331540459,1720469444066,-297.644525,0.00021918,7]
[331540460,1720469444076,-288.613245,0.00021918,7]
[331540461,1720469444085,-288.613245,0.00021918,7]
[331540462,1720469444094,-337.778049,0.00021918,7]
[331540463,1720469444103,-337.778049,0.00021918,7]
[331540464,1720469444113,-1488.27565616,0.00022,2]
[331540465,1720469444123,-793.55353201,0.00022,2]
[331540466,1720469444133,-401.89074645,0.00022,30]
[331540467,1720469444142,-2000.0,0.00022,2]
[331540468,1720469444151,-2000.0,0.00022,2]
[331540469,1720469444160,-1800.0,0.00022,20]
[331540470,1720469444169,-1300.0,0.00022,2]
[331540471,1720469444179,-151.0,0.00022,7]
[331540472,1720469444188,-151.0,0.00022,7]
[331540473,1720469444197,-2500.0,0.000222,2]
[331540474,1720469444206,-185.747024,0.000222,7]
[331540475,1720469444215,-151.0,0.000222,7]
[331540476,1720469444225,-151.0,0.000222,7]
[331540477,1720469444234,-150.0,0.00022495,2]
[331540478,1720469444243,-342.18,0.00022653,2]
[331540479,1720469444252,-2000.0,0.00023,2]
[331540480,1720469444263,-2000.0,0.00023,2]
[331540481,1720469444272,-200.0,0.00023,2]
[331540482,1720469444282,-200.0,0.00023,2]
[331540483,1720469444291,-166.66666666,0.00023042,2]
[331540484,1720469444300,-150.0,0.00023071,2]
[331540485,1720469444309,-150.0,0.00023648,2]
[331540486,1720469444318,-284.007,0.00023754,2]
[331540487,1720469444328,-3240.091,0.00023754,2]
[331540488,1720469444337,-2450.57586,0.0002386,2]
[331540489,1720469444346,-1927.33599983,0.00023999,2]
[331540490,1720469444356,-2000.0,0.00024,2]
[331540491,1720469444365,-2000.0,0.00024,2]
[331540492,1720469444374,-1900.0,0.00024,30]
[331540493,1720469444383,-2385.50991428,0.00024,30]
[331540494,1720469444393,-198.4002443,0.00024,10]
[331540495,1720469444403,-1350.0,0.00024,2]
[331540496,1720469444413,-151.0,0.00024,7]
[331540497,1720469444422,-524.979918,0.00024,7]
[331540498,1720469444432,-193.545091,0.00024,7]
[331540499,1720469444443,-151.0,0.00024,7]
[331540500,1720469444456,-193.545091,0.00024,7]
[331540501,1720469444469,-524.979918,0.00024,7]
[331540502,1720469444479,-194.788856,0.00024,7]
[331540503,1720469444491,-151.0,0.00024,7]
[331540504,1720469444502,-313.546916,0.00024,7]
[331540505,1720469444515,-194.788856,0.00024,7]
[331540506,1720469444527,-313.546916,0.00024,7]
[331540507,1720469444545,-151.0,0.00024,7]
[331540508,1720469444566,-735.926346,0.00024,7]
[331540509,1720469444583,-735.926346,0.00024,7]
[331540510,1720469444593,-151.0,0.00024,7]
[331540511,1720469444602,-166.66666666,0.00024092,2]
[331540512,1720469444612,-499.999999,0.000241,2]
[331540513,1720469444621,-150.0,0.00024225,2]
[331540514,1720469444631,-353.3,0.00024392,2]
[331540515,1720469444640,-151.0,0.00024434,7]
[331540516,1720469444649,-150.0,0.00024563,10]
[331540517,1720469444658,-150.0,0.00024563,10]
[331540518,1720469444667,-150.0,0.00024564,2]
[331540519,1720469444677,-150.0,0.00024564,2]
[331540520,1720469444687,-150.0,0.00024564,2]
[331540521,1720469444696,-150.0,0.00024564,2]
[331540522,1720469444705,-150.0,0.00024564,2]
[331540523,1720469444715,-150.0,0.00024564,2]
[331540524,1720469444724,-150.0,0.00024564,2]
[331540525,1720469444734,-1820.0,0.00024564,2]
[331540526,1720469444743,-1659.0,0.00024564,2]
[331540527,1720469444752,-361.0,0.00024564,2]
[331540528,1720469444762,-1251.0,0.00024564,2]
[331540529,1720469444771,-449.0,0.00024564,2]
[331540530,1720469444780,-617.0,0.00024564,2]
[331540531,1720469444789,-444.0,0.00024564,2]
[331540532,1720469444798,-150.0,0.00024564,2]
[331540533,1720469444807,-1304.0,0.00024564,2]
[331540534,1720469444816,-2377.0,0.00024564,2]
[331540535,1720469444826,-547.0,0.00024564,2]
[331540536,1720469444835,-1986.0,0.00024564,2]
[331540537,1720469444844,-3152.0,0.00024564,2]
[331540538,1720469444854,-151.0,0.00024564,7]
[331540539,1720469444863,-151.0,0.00024564,7]
[331540540,1720469444872,-198.096338,0.00024564,7]
[331540541,1720469444882,-198.096338,0.00024564,7]
[331540542,1720469444891,-151.0,0.00024564,7]
[331540543,1720469444901,-938.43613,0.00024564,7]
[331540544,1720469444911,-938.43613,0.00024564,7]
[331540545,1720469444926,-151.0,0.00024564,7]
[331540546,1720469444947,-1630.59899186,0.00024614,2]
[331540547,1720469444967,-644.501335,0.00024658,7]
[331540548,1720469444990,-644.501335,0.00024658,7]
[331540549,1720469445012,-644.501335,0.00024658,7]
[331540550,1720469445035,-644.501335,0.00024658,7]
[331540551,1720469445059,-644.501335,0.00024658,7]
[331540552,1720469445081,-644.501335,0.00024658,7]
[331540553,1720469445098,-150.0,0.00024802,2]
[331540554,1720469445107,-2500.0,0.000249,2]
[331540555,1720469445118,-151.0,0.000249,7]
[331540556,1720469445128,-280.836541,0.000249,7]
[331540557,1720469445139,-644.501335,0.000249,7]
[331540558,1720469445150,-644.501335,0.000249,7]
[331540559,1720469445160,-342.18,0.00024917,2]
[331540560,1720469445170,-151.0,0.00024933,4]
[331540561,1720469445180,-155.0,0.00025,2]
[331540562,1720469445190,-932.12365454,0.00025,2]
[331540563,1720469445200,-157.04262195,0.00025,2]
[331540564,1720469445209,-225.60259739,0.00025,2]
[331540565,1720469445219,-1984.09775163,0.00025,2]
[331540566,1720469445228,-326.60332768,0.00025,2]
[331540567,1720469445237,-669.21960628,0.00025,30]
[331540568,1720469445246,-1288.77244507,0.00025,30]
[331540569,1720469445256,-1800.0,0.00025,26]
[331540570,1720469445268,-2000.0,0.00025,2]
[331540571,1720469445277,-2000.0,0.00025,2]
[331540572,1720469445287,-1615.40415592,0.00025,2]
[331540573,1720469445296,-2000.0,0.00025,30]
[331540574,1720469445305,-2307.46004668,0.00025,30]
[331540575,1720469445315,-2884.39734886,0.00025,30]
[331540576,1720469445324,-27201.5440122,0.00025,7]
[331540577,1720469445334,-151.0,0.00025,7]
[331540578,1720469445344,-343.263747,0.00025,7]
[331540579,1720469445353,-151.0,0.00025,7]
[331540580,1720469445366,-151.0,0.00025,7]
[331540581,1720469445389,-343.068699,0.00025,7]
[331540582,1720469445415,-343.068699,0.00025,7]
[331540583,1720469445439,-243.498413,0.00025,7]
[331540584,1720469445464,-243.498413,0.00025,7]
[331540585,1720469445493,-151.0,0.00025,7]
[331540586,1720469445531,-151.0,0.00025,7]
[331540587,1720469445555,-151.0,0.00025,7]
[331540588,1720469445569,-200.0,0.00025,2]
[331540589,1720469445579,-297.644525,0.00025,7]
[331540590,1720469445589,-297.644525,0.00025,7]
[331540591,1720469445599,-288.613245,0.00025,7]
[331540592,1720469445608,-288.613245,0.00025,7]
[331540593,1720469445617,-337.778049,0.00025,7]
[331540594,1720469445627,-337.778049,0.00025,7]
[331540596,1720469445636,-311.68537,0.00025,6]
[331540597,1720469445646,-500.0,0.00025,6]
[331540598,1720469445655,-150.0,0.00025031,2]
[331540599,1720469445664,-1600.0,0.00025031,2]
[331540600,1720469445673,-151.0,0.00025205,7]
[331540601,1720469445683,-1000.0,0.00025205,2]
[331540602,1720469445691,-280.0,0.000253,10]
[331540604,1720469445701,-150.0,0.00025379,2]
[331540605,1720469445710,-151.0,0.00025442,2]
[331540606,1720469445719,-2172.65843249,0.00025605,2]
[331540607,1720469445728,-151.0,0.00025672,7]
[331540609,1720469445737,-151.0,0.00025672,7]
[331540611,1720469445746,-552.398468,0.00025693,2]
[331540613,1720469445755,-671.987602,0.00025693,2]
[331540615,1720469445767,-161.17,0.00025699,30]
[331540617,1720469445776,-179.79559481,0.000259,2]
[331540619,1720469445786,-150.0,0.00025955,2]
[331540621,1720469445794,-1000.96751206,0.00026,2]
[331540622,1720469445803,-710.9228927,0.00026,30]
[331540624,1720469445813,-2000.0,0.00026,2]
[331540625,1720469445821,-2000.0,0.00026,2]
[331540626,1720469445830,-7102.75965362,0.00026,5]
[331540627,1720469445840,-158.12530436,0.00026,2]
[331540628,1720469445849,-1400.0,0.00026,2]
[331540629,1720469445858,-203.708153,0.00026,2]
[331540630,1720469445867,-552.398468,0.00026014,2]
[331540632,1720469445877,-671.987602,0.00026014,2]
[331540634,1720469445886,-150.0,0.00026027,2]
[331540635,1720469445895,-150.0,0.00026079,2]
[331540637,1720469445904,-552.398468,0.00026335,2]
[331540639,1720469445913,-671.987602,0.00026335,2]
[331540641,1720469445923,-2450.57587,0.0002636,2]
[331540643,1720469445932,-150.0,0.00026532,2]
[331540645,1720469445941,-552.398468,0.00026657,2]
[331540646,1720469445950,-671.987602,0.00026657,2]
[331540647,1720469445959,-6044.94227776,0.000268,10]
[331540648,1720469445968,-552.398468,0.00026978,2]
[331540649,1720469445977,-671.987602,0.00026978,2]
[331540650,1720469445987,-155.0,0.00027,2]
[331540651,1720469445996,-1056.9,0.00027,2]
[331540652,1720469446006,-550.93345898,0.00027,2]
[331540653,1720469446017,-860.724453,0.00027,2]
[331540654,1720469446027,-24661.40796821,0.00027,2]
[331540655,1720469446036,-883.15780805,0.00027,7]
[331540656,1720469446046,-169.93311326,0.00027,2]
[331540657,1720469446055,-155.0,0.00027,2]
[331540658,1720469446065,-1609.43059537,0.00027,30]
[331540659,1720469446075,-339.81835002,0.00027,7]
[331540660,1720469446084,-155.0,0.00027,2]
[331540661,1720469446094,-155.0,0.00027,2]
[331540662,1720469446103,-1056.899999,0.00027,2]
[331540663,1720469446112,-3276.068677,0.00027,2]
[331540664,1720469446122,-151.0,0.00027,7]
[331540665,1720469446131,-524.979918,0.00027,7]
[331540666,1720469446140,-193.545091,0.00027,7]
[331540667,1720469446154,-155.07574,0.00027,7]
[331540668,1720469446163,-193.545091,0.00027,7]
[331540669,1720469446172,-524.979918,0.00027,7]
[331540670,1720469446182,-194.788856,0.00027,7]
[331540671,1720469446192,-151.0,0.00027,7]
[331540672,1720469446201,-313.546916,0.00027,7]
[331540673,1720469446211,-194.788856,0.00027,7]